fUSD/lending_fUSD_20260202
["ID","MTS","AMOUNT","RATE_DAILY","PERIOD"]
[404318324,1770055928168,-800.0,0.00043911,31]
[404318325,1770055928207,-800.0,0.00043911,31]
[404318326,1770055928249,-800.0,0.00043911,31]
[404318327,1770055928292,-800.0,0.00043911,31]
[404318328,1770055928335,-800.0,0.00043911,31]
[404318329,1770055928378,-835.0,0.00043911,120]
[404318330,1770055928424,-200.1351692,0.00043911,120]
[404318331,1770055928464,-369.91610477,0.00043911,30]
[404318332,1770055928502,-300.0,0.00043911,30]
[404318333,1770055928538,-300.0,0.00043911,30]
[404318334,1770055928576,-300.0,0.00043911,30]
[404318335,1770055928617,-300.0,0.00043911,30]
[404318336,1770055928658,-300.0,0.00043911,30]
[404318337,1770055928699,-300.0,0.00043911,30]
[404318338,1770055928739,-300.0,0.00043911,30]
[404318339,1770055928780,-300.0,0.00043911,30]
[404318340,1770055928820,-300.0,0.00043911,30]
[404318341,1770055928860,-300.0,0.00043911,30]
[404318342,1770055928898,-300.0,0.00043911,30]
[404318343,1770055929107,-300.0,0.00043911,30]
[404318344,1770055929149,-155.3943621,0.00043911,120]
[404318345,1770055929192,-378.33248381,0.00043911,120]
[404318346,1770055929235,-165.13733532,0.00043911,60]
[404318347,1770055929276,-568.9378736,0.00043911,120]
[404318348,1770055929318,-656.94146825,0.00043911,30]
[404318349,1770055929358,-1317.40916301,0.00043911,30]
[404318350,1770055929400,-7520.54953367,0.00043911,120]
[404318351,1770055929439,-2139.2275405,0.00043911,30]
[404318352,1770055929483,-962.91451485,0.00043911,60]
[404318353,1770055929523,-1625.53728946,0.00043911,120]
[404318354,1770055929562,-1391.17358689,0.00043911,30]
[404318355,1770055929599,-263.7138388,0.00043911,30]
[404318356,1770055929637,-173.39089716,0.00043911,120]
[404318357,1770055929675,-987.56867359,0.00043911,36]
[404318358,1770055929715,-256.48984447,0.00043911,30]
[404318359,1770055929753,-451.06130069,0.00043911,30]
[404318360,1770055929792,-2040.94135135,0.00043911,30]
[404318361,1770055929829,-349.96465183,0.00043911,37]
[404318362,1770055929866,-372.04034507,0.00043911,30]
[404318363,1770055929903,-1223.64,0.00043911,120]
[404318364,1770055929942,-625.0,0.00043911,30]
[404318365,1770055929981,-482.42161113,0.00043911,120]
[404318366,1770055930022,-4000.0,0.00043911,30]
[404318367,1770055930061,-1034.95371728,0.00043911,120]
[404318368,1770055930100,-3031.68316467,0.00043911,30]
[404318369,1770055930141,-400.7116622,0.00043911,120]
[404318370,1770055930180,-1106.18,0.00043911,60]
[404318371,1770055930217,-324.19202735,0.00043911,120]
[404318372,1770055930255,-1329.90954939,0.00043911,120]
[404318373,1770055930292,-785.0,0.00043911,120]
[404318374,1770055930331,-623.52028443,0.00043911,120]
[404318375,1770055930373,-10494.18851523,0.00043911,60]
[404318376,1770055930414,-5000.0,0.00043911,120]
[404318377,1770055930454,-512.46770083,0.00043911,60]
[404318378,1770055930499,-1104.0,0.00043911,30]
[404318379,1770055930544,-673686.2,0.00043911,30]
[404318380,1770055930582,-99999.999999,0.00043911,32]
[404318381,1770055930620,-223.1,0.00043911,120]
[404318382,1770055930660,-50000.0,0.00043911,63]
[404318383,1770055930701,-50000.0,0.00043911,64]
[404318384,1770055930738,-650.49277453,0.00043911,30]
[404318385,1770055930779,-165625.0,0.00043911,60]
[404318386,1770055930821,-731.48822448,0.00043911,120]
[404318387,1770055930863,-500.0,0.00043911,120]
[404318388,1770055930904,-224.98682566,0.00043911,120]
[404318389,1770055930944,-80968.41,0.00043911,120]
[404318390,1770055930984,-4820.38279555,0.00043911,30]
[404318391,1770055931022,-321.7657614,0.00043911,120]
[404318392,1770055931064,-50000.0,0.00043911,65]
[404318393,1770055931102,-50000.0,0.00043911,66]
[404318394,1770055931144,-50000.0,0.00043911,67]
[404318395,1770055931181,-501.95257947,0.00043911,120]
[404318396,1770055931220,-248.92809431,0.00043911,120]
[404318397,1770055931264,-5389.81083034,0.00043911,120]
[404318398,1770055931305,-122671.4197576,0.00043911,120]
[404318399,1770055931344,-5381.6333916,0.00043911,30]
[404318400,1770055931383,-90928.69390882,0.00043911,30]
[404318401,1770055931423,-8014.15026223,0.00043911,120]
[404318402,1770055931464,-165.65156396,0.00043911,120]
[404318403,1770055931503,-221.62907997,0.00043911,120]
[404318404,1770055931542,-165.65156396,0.00043911,120]
[404318405,1770055931581,-165.65156396,0.00043911,120]
[404318406,1770055931620,-165.65156396,0.00043911,120]
[404318407,1770055931661,-165.65156396,0.00043911,120]
[404318408,1770055931700,-165.65156396,0.00043911,120]
[404318409,1770055931737,-165.65156396,0.00043911,120]
[404318410,1770055931778,-3000.0,0.00043911,30]
[404318411,1770055931815,-3000.0,0.00043911,30]
[404318412,1770055931852,-3000.0,0.00043911,30]
[404318413,1770055931892,-450.79309902,0.00043911,120]
[404318414,1770055931931,-150.7668283,0.00043911,120]
[404318415,1770055931970,-3000.0,0.00043911,31]
[404318416,1770055932008,-56504.00938454,0.00043911,120]
[404318417,1770055932046,-1526.57205293,0.00043911,30]
[404318418,1770055932083,-653.64861024,0.00043911,120]
[404318419,1770055932123,-1000.0,0.00043911,30]
[404318420,1770055932160,-400.0,0.00043911,30]
[404318421,1770055932200,-400.0,0.00043911,30]
[404318422,1770055932236,-400.0,0.00043911,30]
[404318423,1770055932274,-400.0,0.00043911,30]
[404318424,1770055932310,-400.0,0.00043911,30]
[404318425,1770055932347,-400.0,0.00043911,30]
[404318426,1770055932385,-400.0,0.00043911,30]
[404318427,1770055932423,-400.0,0.00043911,30]
[404318428,1770055932462,-400.0,0.00043911,30]
[404318429,1770055932500,-400.0,0.00043911,30]
[404318430,1770055932537,-400.0,0.00043911,30]
[404318431,1770055932571,-400.0,0.00043911,30]
[404318432,1770055932609,-400.0,0.00043911,30]
[404318433,1770055932646,-400.0,0.00043911,30]
[404318434,1770055932683,-400.0,0.00043911,30]
[404318435,1770055932719,-400.0,0.00043911,30]
[404318436,1770055932755,-430.79215138,0.00043911,30]
[404318437,1770055932983,-1002189.72797499,0.00043911,30]
[404318438,1770055933032,-498.29,0.00043911,30]
[404318439,1770055933070,-485.58,0.00043911,30]
[404318440,1770055933108,-485.44,0.00043911,30]
[404318441,1770055933147,-485.44,0.00043911,30]
[404318442,1770055933185,-485.58,0.00043911,30]
[404318443,1770055933223,-485.58,0.00043911,30]
[404318444,1770055933261,-1608.0,0.00043911,30]
[404318445,1770055933296,-1608.0,0.00043911,120]
[404318446,1770055933338,-526.67,0.00043911,30]
[404318447,1770055933375,-960.09,0.00043911,30]
[404318448,1770055933413,-455.0192996,0.00043911,120]
[404318449,1770055933453,-159.47,0.00043911,30]
[404318450,1770055933492,-1103.0,0.00043911,30]
[404318451,1770055933530,-1103.0,0.00043911,30]
[404318452,1770055933567,-1103.0,0.00043911,30]
[404318453,1770055933603,-1103.0,0.00043911,30]
[404318454,1770055933638,-1103.0,0.00043911,30]
[404318455,1770055933675,-485.58,0.00043911,30]
[404318456,1770055933710,-967.45,0.00043911,30]
[404318457,1770055933746,-150.0,0.00043911,30]
[404318458,1770055933785,-485.44,0.00043911,30]
[404318459,1770055933823,-485.58,0.00043911,30]
[404318460,1770055933862,-800.0,0.00043911,120]
[404318461,1770055933903,-485.44,0.00043911,30]
[404318462,1770055933948,-485.44,0.00043911,30]
[404318463,1770055934352,150.0,0.00010815,2]
[404318464,1770055934416,300.0,0.00010815,2]
[404318465,1770055934444,-280.77359984,0.00010816,2]
[404318466,1770055935177,520.0,0.00043911,120]
[404318467,1770055935225,500.0,0.00043911,120]
[404318468,1770055935277,500.0,0.00043911,120]
[404318469,1770055935329,600.0,0.00043911,120]
[404318470,1770055935391,539.24,0.00043911,120]
[404318471,1770055935435,500.0,0.00043911,120]
[404318472,1770055935479,250.0,0.00043911,120]
[404318473,1770055935521,518.5,0.00043911,120]
[404318474,1770055935568,600.0,0.00043911,120]
[404318475,1770055935687,559.19188,0.00043911,120]
[404318476,1770055935737,500.0,0.00043911,120]
[404318477,1770055935790,537.6845,0.00043911,120]
[404318478,1770055935842,600.0,0.00043911,120]
[404318479,1770055935922,579.88197956,0.00043911,120]
[404318480,1770055935981,500.0,0.00043911,120]
[404318481,1770055936029,557.5788265,0.00043911,120]
[404318482,1770055936075,600.0,0.00043911,120]
[404318483,1770055936163,601.3376128,0.00043911,120]
[404318484,1770055936215,500.0,0.00043911,120]
[404318485,1770055936263,578.20924308,0.00043911,120]
[404318486,1770055936334,600.0,0.00043911,120]
[404318487,1770055936612,623.58710448,0.00043911,120]
[404318488,1770055936672,500.0,0.00043911,120]
[404318489,1770055936761,600.0,0.00043911,120]
[404318490,1770055936806,599.60298507,0.00043911,120]
[404318491,1770055936868,500.0,0.00043911,120]
[404318492,1770055936946,646.65982734,0.00043911,120]
[404318493,1770055937018,600.0,0.00043911,120]
[404318494,1770055937064,621.78829552,0.00043911,120]
[404318495,1770055937144,500.0,0.00043911,120]
[404318496,1770055937202,670.58624095,0.00043911,120]
[404318497,1770055937277,600.0,0.00043911,120]
[404318498,1770055937326,500.0,0.00043911,120]
[404318499,1770055937384,644.79446246,0.00043911,120]
[404318500,1770055937445,500.0,0.00043911,120]
[404318501,1770055937511,695.39793187,0.00043911,120]
[404318502,1770055937595,600.0,0.00043911,120]
[404318503,1770055937641,500.0,0.00043911,120]
[404318504,1770055937691,668.65185757,0.00043911,120]
[404318505,1770055937793,500.0,0.00043911,120]
[404318506,1770055937865,721.12765535,0.00043911,120]
[404318507,1770055937932,600.0,0.00043911,120]
[404318508,1770055937979,500.0,0.00043911,120]
[404318509,1770055938674,-250.0,0.00010816,2]
[404318510,1770055939202,-3522.0,0.00010816,2]
[404318511,1770055939233,-5000.01,0.00010816,2]
[404318512,1770055939648,-1023.96267767,0.00043911,20]
[404318513,1770055939687,-449.90869905,0.00043911,24]
[404318514,1770055939725,-500.0,0.00043911,120]
[404318515,1770055939761,-747.8093786,0.00043911,120]
[404318516,1770055939798,-600.0,0.00043911,120]
[404318517,1770055939835,-500.0,0.00043911,120]
[404318518,1770055939873,-500.0,0.00043911,120]
[404318519,1770055939913,-775.47832561,0.00043911,120]
[404318520,1770055939950,-500.0,0.00043911,120]
[404318521,1770055939988,-600.0,0.00043911,120]
[404318522,1770055940027,-500.0,0.00043911,120]
[404318523,1770055940063,-804.17102365,0.00043911,120]
[404318524,1770055940099,-500.0,0.00043911,120]
[404318525,1770055940135,-600.0,0.00043911,120]
[404318526,1770055940173,-500.0,0.00043911,120]
[404318527,1770055940210,-833.92535153,0.00043911,120]
[404318528,1770055940248,-600.0,0.00043911,120]
[404318529,1770055940286,-500.0,0.00043911,120]
[404318530,1770055940322,-600.0,0.00043911,120]
[404318531,1770055940361,-500.0,0.00043911,120]
[404318532,1770055940400,-864.78058953,0.00043911,120]
[404318533,1770055940437,-600.0,0.00043911,120]
[404318534,1770055940475,-500.0,0.00043911,120]
[404318535,1770055940510,-896.77747135,0.00043911,120]
[404318536,1770055940544,-600.0,0.00043911,120]
[404318537,1770055940580,-500.0,0.00043911,120]
[404318538,1770055940616,-929.95823779,0.00043911,120]
[404318539,1770055940652,-151.0,0.00043911,120]
[404318540,1770055940687,-400.0,0.00043911,120]
[404318541,1770055940724,-500.0,0.00043911,120]
[404318542,1770055940760,-250.0,0.00043911,120]
[404318543,1770055940797,-600.0,0.00043911,120]
[404318544,1770055940834,-500.0,0.00043911,120]
[404318545,1770055940871,-929.95823779,0.00043911,120]
[404318546,1770055940908,-6888.0,0.00043911,120]
[404318547,1770055940945,-151.0,0.00043911,120]
[404318548,1770055940983,-400.0,0.00043911,120]
[404318549,1770055941026,-500.0,0.00043911,120]
[404318550,1770055941066,-250.0,0.00043911,120]
[404318551,1770055941104,-600.0,0.00043911,120]
[404318552,1770055941143,-500.0,0.00043911,120]
[404318553,1770055941183,-7142.856,0.00043911,120]
[404318554,1770055941220,-151.0,0.00043911,120]
[404318555,1770055941257,-400.0,0.00043911,120]
[404318556,1770055941296,-500.0,0.00043911,120]
[404318557,1770055941447,-5000.01,0.00010816,2]
[404318558,1770055941558,600.0,0.00043911,120]
[404318559,1770055941604,250.0,0.00043911,120]
[404318560,1770055941631,-5000.01,0.00010816,2]
[404318561,1770055941660,-6068.76306184,0.00010816,2]
[404318562,1770055941706,500.0,0.00043911,120]
[404318563,1770055941721,-5000.01,0.00010816,2]
[404318564,1770055941734,-10000.01,0.00010816,2]
[404318565,1770055941749,-10000.01,0.00010816,2]
[404318566,1770055941763,-5000.01,0.00010816,2]
[404318567,1770055941776,-10000.01,0.00010816,2]
[404318568,1770055941827,7407.141672,0.00043911,120]
[404318569,1770055941873,151.0,0.00043911,120]
[404318570,1770055941920,400.0,0.00043911,120]
[404318571,1770055941934,-10000.01,0.00010816,2]
[404318572,1770055941947,-10000.01,0.00010816,2]
[404318573,1770055941961,-10000.01,0.00010816,2]
[404318574,1770055942008,250.0,0.00043911,120]
[404318575,1770055942055,151.0,0.00043911,120]
[404318576,1770055942070,-10000.01,0.00010816,2]
[404318577,1770055942084,-10000.01,0.00010816,2]
[404318578,1770055942098,-10000.01,0.00010816,2]
[404318579,1770055942110,-10000.01,0.00010816,2]
[404318580,1770055942123,-10000.01,0.00010816,2]
[404318581,1770055942137,-10000.01,0.00010816,2]
[404318582,1770055942183,7681.20591386,0.00043911,120]
[404318583,1770055942197,-10000.01,0.00010816,2]
[404318584,1770055942283,151.0,0.00043911,120]
[404318585,1770055942330,400.0,0.00043911,120]
[404318586,1770055942375,250.0,0.00043911,120]
[404318587,1770055942421,156.587,0.00043911,120]
[404318588,1770055942477,7965.41053268,0.00043911,120]
[404318589,1770055942520,151.0,0.00043911,120]
[404318590,1770055942564,160.0,0.00043911,120]
[404318591,1770055942608,400.0,0.00043911,120]
[404318592,1770055942675,250.0,0.00043911,120]
[404318593,1770055942721,162.380719,0.00043911,120]
[404318594,1770055942753,-5000.01,0.00010816,2]
[404318595,1770055942781,-5000.01,0.00010816,2]
[404318596,1770055942871,151.0,0.00043911,120]
[404318597,1770055942969,151.0,0.00043911,120]
[404318598,1770055943014,160.0,0.00043911,120]
[404318599,1770055943060,400.0,0.00043911,120]
[404318600,1770055943115,250.0,0.00043911,120]
[404318601,1770055943391,168.3888056,0.00043911,120]
[404318602,1770055943462,156.587,0.00043911,120]
[404318603,1770055943534,151.0,0.00043911,120]
[404318604,1770055943576,1041.39554862,0.00043911,120]
[404318605,1770055943620,160.0,0.00043911,120]
[404318606,1770055943667,400.0,0.00043911,120]
[404318607,1770055943720,-235.0,0.00010816,2]
[404318608,1770055943769,250.0,0.00043911,120]
[404318609,1770055943841,174.61919141,0.00043911,120]
[404318610,1770055943889,1030.0,0.00043911,120]
[404318611,1770055943967,162.380719,0.00043911,120]
[404318612,1770055944024,151.0,0.00043911,120]
[404318613,1770055944080,160.0,0.00043911,120]
[404318614,1770055944126,400.0,0.00043911,120]
[404318615,1770055944187,250.0,0.00043911,120]
[404318616,1770055944246,181.08010149,0.00043911,120]
[404318617,1770055944295,1068.11,0.00043911,120]
[404318618,1770055944353,168.3888056,0.00043911,120]
[404318619,1770055944570,151.0,0.00043911,120]
[404318620,1770055944632,160.0,0.00043911,120]
[404318621,1770055944679,400.0,0.00043911,120]
[404318622,1770055944731,187.78006525,0.00043911,120]
[404318623,1770055944793,1107.63007,0.00043911,120]
[404318624,1770055944809,-5000.01,0.00010816,2]
[404318625,1770055944867,174.61919141,0.00043911,120]
[404318626,1770055944918,151.0,0.00043911,120]
[404318627,1770055944968,160.0,0.00043911,120]
[404318628,1770055945018,400.0,0.00043911,120]
[404318629,1770055945106,194.72792766,0.00043911,120]
[404318630,1770055945154,1148.61238259,0.00043911,120]
[404318631,1770055945204,181.08010149,0.00043911,120]
[404318632,1770055945252,151.0,0.00043911,120]
[404318633,1770055945266,-10000.01,0.00010816,2]
[404318634,1770055945317,160.0,0.00043911,120]
[404318635,1770055945367,400.0,0.00043911,120]
[404318636,1770055945381,-10000.01,0.00010816,2]
[404318637,1770055945398,-10000.01,0.00010816,2]
[404318638,1770055945446,194.72792766,0.00043911,120]
[404318639,1770055945460,-10000.01,0.00010816,2]
[404318640,1770055945505,1191.11104075,0.00043911,120]
[404318641,1770055945519,-10000.01,0.00010816,2]
[404318642,1770055945531,-10000.01,0.00010816,2]
[404318643,1770055945576,187.78006525,0.00043911,120]
[404318644,1770055945625,-10000.01,0.00010816,2]
[404318645,1770055945674,500.0,0.00043911,120]
[404318646,1770055945718,160.0,0.00043911,120]
[404318647,1770055945762,400.0,0.00043911,120]
[404318648,1770055945791,-10000.01,0.00010816,2]
[404318649,1770055945811,-10000.01,0.00010816,2]
[404318650,1770055945827,-10000.01,0.00010816,2]
[404318651,1770055945848,-5000.01,0.00010816,2]
[404318652,1770055945861,-10000.01,0.00010816,2]
[404318653,1770055945921,151.0,0.00043911,120]
[404318654,1770055945967,194.72792766,0.00043911,120]
[404318655,1770055945994,-5000.01,0.00010816,2]
[404318656,1770055946007,-10000.01,0.00010816,2]
[404318657,1770055946054,500.0,0.00043911,120]
[404318658,1770055946108,160.0,0.00043911,120]
[404318659,1770055946122,-10000.01,0.00010816,2]
[404318660,1770055946164,400.0,0.00043911,120]
[404318661,1770055946177,-5000.01,0.00010816,2]
[404318662,1770055946233,200.0,0.00043911,120]
[404318663,1770055946247,-5000.01,0.00010816,2]
[404318664,1770055946260,-10000.01,0.00010816,2]
[404318665,1770055946306,1235.18214925,0.00043911,120]
[404318666,1770055946322,-10000.01,0.00010816,2]
[404318667,1770055946348,-5000.01,0.00010816,2]
[404318668,1770055946361,-5000.01,0.00010816,2]
[404318669,1770055946420,500.0,0.00043911,120]
[404318670,1770055946434,-5000.01,0.00010816,2]
[404318671,1770055946478,151.0,0.00043911,120]
[404318672,1770055946525,201.93286099,0.00043911,120]
[404318673,1770055946545,-5000.01,0.00010816,2]
[404318674,1770055946574,-5000.01,0.00010816,2]
[404318675,1770055946629,400.0,0.00043911,120]
[404318676,1770055946674,500.0,0.00043911,120]
[404318677,1770055946726,200.0,0.00043911,120]
[404318678,1770055946741,-5000.01,0.00010816,2]
[404318679,1770055946930,-5000.01,0.00010816,2]
[404318680,1770055947001,200.0,0.00043911,30]
[404318681,1770055947016,-5000.01,0.00010816,2]
[404318682,1770055947062,500.0,0.00043911,120]
[404318683,1770055947077,-5000.01,0.00010816,2]
[404318684,1770055947127,151.0,0.00043911,120]
[404318685,1770055947185,209.40437684,0.00043911,120]
[404318686,1770055947200,-5000.01,0.00010816,2]
[404318687,1770055947258,1280.88388878,0.00043911,120]
[404318688,1770055947324,400.0,0.00043911,120]
[404318689,1770055947369,500.0,0.00043911,120]
[404318690,1770055947447,207.4,0.00043911,30]
[404318691,1770055947492,500.0,0.00043911,120]
[404318692,1770055947543,151.0,0.00043911,120]
[404318693,1770055947586,209.40437684,0.00043911,120]
[404318694,1770055947655,1328.27659266,0.00043911,120]
[404318695,1770055947672,-5000.01,0.00010816,2]
[404318696,1770055947721,500.0,0.00043911,120]
[404318697,1770055947761,-5000.01,0.00010816,2]
[404318698,1770055947779,-5000.01,0.00010816,2]
[404318699,1770055947805,-5000.01,0.00010816,2]
[404318700,1770055947857,215.0738,0.00043911,30]
[404318701,1770055947904,500.0,0.00043911,120]
[404318702,1770055947960,151.0,0.00043911,120]
[404318703,1770055947978,-5000.01,0.00010816,2]
[404318704,1770055947993,-5000.01,0.00010816,2]
[404318705,1770055948049,1377.42282659,0.00043911,120]
[404318706,1770055948074,-5000.01,0.00010816,2]
[404318707,1770055948116,500.0,0.00043911,120]
[404318708,1770055948166,-5000.01,0.00010816,2]
[404318709,1770055948193,-5000.01,0.00010816,2]
[404318710,1770055948220,-1073.24458984,0.00010816,2]
[404318711,1770055948284,500.0,0.00043911,120]
[404318712,1770055948336,223.0315306,0.00043911,30]
[404318713,1770055948350,-5000.01,0.00010816,2]
[404318714,1770055948395,151.0,0.00043911,120]
[404318715,1770055948409,-5000.01,0.00010816,2]
[404318716,1770055948448,-5000.01,0.00010816,2]
[404318717,1770055948492,1428.38747117,0.00043911,120]
[404318718,1770055948507,-5000.01,0.00010816,2]
[404318719,1770055948555,500.0,0.00043911,120]
[404318720,1770055948587,-5000.01,0.00010816,2]
[404318721,1770055948642,231.28369723,0.00043911,30]
[404318722,1770055948683,500.0,0.00043911,120]
[404318723,1770055948725,151.0,0.00043911,120]
[404318724,1770055948739,-10000.01,0.00010816,2]
[404318725,1770055948763,-10000.01,0.00010816,2]
[404318726,1770055948778,-5000.01,0.00010816,2]
[404318727,1770055948829,1481.23780761,0.00043911,120]
[404318728,1770055948857,-4484.54586241,0.00010816,2]
[404318729,1770055948871,-2966.9495,0.00010816,2]
[404318730,1770055948994,500.0,0.00043911,120]
[404318731,1770055949155,500.0,0.00043911,120]
[404318732,1770055949201,239.84119403,0.00043911,30]
[404318733,1770055949282,151.0,0.00043911,120]
[404318734,1770055949364,151.0,0.00043911,120]
[404318735,1770055949614,500.0,0.00043911,120]
[404318736,1770055949654,248.71531821,0.00043911,30]
[404318737,1770055949736,1536.04360649,0.00043911,120]
[404318738,1770055949779,151.0,0.00043911,120]
[404318739,1770055949854,500.0,0.00043911,120]
[404318740,1770055950094,500.0,0.00043911,120]
[404318741,1770055950145,257.91778498,0.00043911,30]
[404318742,1770055950202,151.0,0.00043911,120]
[404318743,1770055950249,1592.87721993,0.00043911,120]
[404318744,1770055950384,500.0,0.00043911,120]
[404318745,1770055950441,500.0,0.00043911,120]
[404318746,1770055950480,257.91778498,0.00043911,30]
[404318747,1770055950519,151.0,0.00043911,120]
[404318748,1770055950561,1651.81367706,0.00043911,120]
[404318749,1770055959794,10000.01,0.00010816,2]
[404318750,1770055959821,10000.01,0.00010816,2]
[404318751,1770055959848,10000.01,0.00010816,2]
[404318752,1770055959872,10000.01,0.00010816,2]
[404318753,1770055959896,10000.01,0.00010816,2]
[404318754,1770055959920,10000.01,0.00010816,2]
[404318755,1770055959944,10000.01,0.00010816,2]
[404318756,1770055959969,10000.01,0.00010816,2]
[404318757,1770055959993,10000.01,0.00010816,2]
[404318758,1770055960017,10000.01,0.00010816,2]
[404318759,1770055960040,10000.01,0.00010816,2]
[404318760,1770055960063,10000.01,0.00010816,2]
[404318761,1770055960086,10000.01,0.00010816,2]
[404318762,1770055960109,10000.01,0.00010816,2]
[404318763,1770055960131,10000.01,0.00010816,2]
[404318764,1770055960574,-479.13010388,0.00010816,2]
[404318765,1770055972748,-500.0,0.00043911,120]
[404318766,1770055972787,-500.0,0.00043911,120]
[404318767,1770055972823,-151.0,0.00043911,120]
[404318768,1770055972862,-151.0,0.00043911,120]
[404318769,1770055972899,-1712.93078312,0.00043911,120]
[404318770,1770055972936,-500.0,0.00043911,120]
[404318771,1770055972974,-151.0,0.00043911,120]
[404318772,1770055973011,-156.587,0.00043911,120]
[404318773,1770055973054,-1776.30922209,0.00043911,120]
[404318774,1770055973091,-500.0,0.00043911,120]
[404318775,1770055973129,-151.0,0.00043911,120]
[404318776,1770055973166,-300.0,0.00043911,120]
[404318777,1770055973209,-1842.03266331,0.00043911,120]
[404318778,1770055973249,-162.380719,0.00043911,120]
[404318779,1770055973288,-500.0,0.00043911,120]
[404318780,1770055973335,-151.0,0.00043911,120]
[404318781,1770055973376,-311.1,0.00043911,120]
[404318782,1770055973417,-1910.18787185,0.00043911,120]
[404318783,1770055973459,-168.3888056,0.00043911,120]
[404318784,1770055973500,-485.44,0.00043911,30]
[404318785,1770055973544,-500.0,0.00043911,120]
[404318786,1770055973588,-322.6107,0.00043911,120]
[404318787,1770055973630,-151.0,0.00043911,120]
[404318788,1770055973672,-1980.86482311,0.00043911,120]
[404318789,1770055973716,-174.61919141,0.00043911,120]
[404318790,1770055973756,-500.0,0.00043911,120]
[404318791,1770055973802,-151.0,0.00043911,120]
[404318792,1770055973844,-1980.86482311,0.00043911,120]
[404318793,1770055973892,-181.08010149,0.00043911,120]
[404318794,1770055973936,-334.5472959,0.00043911,120]
[404318795,1770055973980,-500.0,0.00043911,120]
[404318796,1770055974024,-620.0,0.00043911,120]
[404318797,1770055974070,-151.0,0.00043911,120]
[404318798,1770055974112,-187.78006525,0.00043911,120]
[404318799,1770055974155,-500.0,0.00043911,120]
[404318800,1770055974198,-500.0,0.00043911,120]
[404318801,1770055974239,-151.0,0.00043911,120]
[404318802,1770055974281,-642.94,0.00043911,120]
[404318803,1770055974324,-194.72792766,0.00043911,120]
[404318804,1770055974659,-346.92554585,0.00043911,120]
[404318805,1770055974701,-500.0,0.00043911,120]
[404318806,1770055974741,-500.0,0.00043911,120]
[404318807,1770055974779,-151.0,0.00043911,120]
[404318808,1770055974819,-666.72878,0.00043911,120]
[404318809,1770055974863,-500.0,0.00043911,120]
[404318810,1770055974905,-201.93286099,0.00043911,120]
[404318811,1770055974947,-359.76179104,0.00043911,120]
[404318812,1770055974990,-500.0,0.00043911,120]
[404318813,1770055975032,-691.39774486,0.00043911,120]
[404318814,1770055975073,-151.0,0.00043911,120]
[404318815,1770055975110,-500.0,0.00043911,120]
[404318816,1770055975148,-209.40437684,0.00043911,120]
[404318817,1770055975189,-373.07297731,0.00043911,120]
[404318818,1770055975228,-500.0,0.00043911,120]
[404318819,1770055975268,-716.97946142,0.00043911,120]
[404318820,1770055975306,-151.0,0.00043911,120]
[404318821,1770055975342,-217.15233878,0.00043911,120]
[404318822,1770055975378,-500.0,0.00043911,120]
[404318823,1770055975414,-356.3049196,0.00043911,120]